bitfinex/quotes_BTCUSD_20250826
["timestamp","ask_amount","ask_price","bid_price","bid_amount"]
[1756236321747,7.27037368,111280.0,111270.0,1e-08]
[1756236321959,7.30268039,111280.0,111270.0,1e-08]
[1756236322405,7.27037368,111280.0,111270.0,1e-08]
[1756236322823,7.27337368,111280.0,111270.0,1e-08]
[1756236323435,7.27807734,111280.0,111270.0,1e-08]
[1756236325285,7.31038405,111280.0,111270.0,1e-08]
[1756236325510,7.27807734,111280.0,111270.0,1e-08]
[1756236326154,7.31038405,111280.0,111270.0,1e-08]
[1756236327262,7.15306405,111280.0,111270.0,1e-08]
[1756236327526,7.31042405,111280.0,111270.0,1e-08]
[1756236327744,7.16156405,111280.0,111270.0,1e-08]
[1756236327968,7.31892405,111280.0,111270.0,1e-08]
[1756236328626,7.32733954,111280.0,111270.0,1e-08]
[1756236328848,7.31893113,111280.0,111270.0,1e-08]
[1756236329288,7.16157065,111280.0,111270.0,1e-08]
[1756236329519,7.28662394,111280.0,111270.0,1e-08]
[1756236330233,7.31893065,111280.0,111270.0,1e-08]
[1756236330932,0.17991235,111180.0,111150.0,0.27025379]
[1756236331164,0.17991235,111180.0,111150.0,0.0004]
[1756236331165,0.17992083,111160.0,111150.0,0.0004]
[1756236331424,0.67463876,111160.0,111150.0,0.0004]
[1756236332320,0.67463876,111160.0,111150.0,0.0014]
[1756236332568,0.18004963,111160.0,111150.0,0.0074]
[1756236333263,0.67476756,111160.0,111150.0,0.0074]
[1756236333490,0.18004963,111160.0,111150.0,0.0074]
[1756236333708,0.66389376,111160.0,111150.0,0.0074]
[1756236333930,0.66389376,111160.0,111150.0,0.0064]
[1756236334373,0.66389376,111160.0,111150.0,0.0104]
[1756236334827,0.18004963,111160.0,111150.0,0.0104]
[1756236335050,0.66389376,111160.0,111150.0,0.0104]
[1756236335721,0.18004963,111160.0,111150.0,0.0104]
[1756236336234,0.66389376,111160.0,111150.0,0.0104]
[1756236338292,0.18004963,111160.0,111150.0,0.0104]
[1756236339043,0.66389376,111160.0,111150.0,0.0104]
[1756236339540,0.67225472,111160.0,111150.0,0.0104]
[1756236340035,0.20513252,111160.0,111150.0,0.0104]
[1756236340514,0.19677156,111160.0,111150.0,0.0104]
[1756236341289,0.26941628,111160.0,111150.0,0.0104]
[1756236341582,1.17570719,111160.0,111150.0,0.0104]
[1756236341835,6.17019163,111160.0,111150.0,0.0104]
[1756236342099,6.20172364,111160.0,111150.0,0.0104]
[1756236342383,6.37969456,111160.0,111150.0,0.0104]
[1756236342657,0.6781813,111160.0,111150.0,0.0064]
[1756236342925,0.81804208,111160.0,111150.0,0.0004]
[1756236343475,0.58727736,111160.0,111150.0,0.0004]
[1756236343740,0.58727736,111160.0,111150.0,0.0014]
[1756236343989,0.67872265,111160.0,111150.0,0.0014]
[1756236344259,0.67772265,111160.0,111150.0,0.0014]
[1756236345627,1.16156678,111160.0,111150.0,0.0014]
[1756236345880,1.2342115,111160.0,111150.0,0.0014]
[1756236347169,1.14276621,111160.0,111150.0,0.0014]
[1756236347423,0.58627736,111160.0,111150.0,0.000931]
[1756236347673,0.74451736,111160.0,111150.0,0.000931]
[1756236348564,0.72766193,111160.0,111150.0,0.000931]
[1756236349038,0.56942386,111160.0,111150.0,0.000931]
[1756236351342,0.72742386,111160.0,111150.0,0.000931]
[1756236351799,0.56942386,111160.0,111150.0,0.000931]
[1756236352039,0.72742386,111160.0,111150.0,0.000931]
[1756236352258,6.24981585,111160.0,111150.0,0.000931]
[1756236352473,6.20783663,111160.0,111150.0,0.000931]
[1756236353391,6.17431596,111160.0,111150.0,0.000931]
[1756236354510,0.58869683,111160.0,111150.0,0.000931]
[1756236354732,0.74709683,111160.0,111150.0,0.000431]
[1756236354955,1.23094096,111160.0,111150.0,0.000431]
[1756236355120,1.20387596,111160.0,111150.0,0.000431]
[1756236355542,1.29532125,111160.0,111150.0,0.000431]
[1756236356483,0.56163183,111160.0,111150.0,0.000431]
[1756236357179,0.71979183,111160.0,111150.0,0.000431]
[1756236357389,1.20363596,111160.0,111150.0,8.9e-06]
[1756236358454,1.2278721,111160.0,111150.0,8.9e-06]
[1756236358635,1.22790785,111160.0,111150.0,8.9e-06]
[1756236358836,1.27581292,111160.0,111150.0,8.9e-06]
[1756236359086,1.22790785,111160.0,111150.0,8.9e-06]
[1756236359313,1.2423154,111160.0,111150.0,8.9e-06]
[1756236360388,1.2423154,111160.0,111130.0,0.24956842]
[1756236360389,0.17995321,111140.0,111130.0,0.24956842]
[1756236360661,0.04455176,111140.0,111130.0,0.24956842]
[1756236360873,0.02768444,111140.0,111130.0,0.73341255]
[1756236361077,0.02768444,111140.0,111130.0,0.89137255]
[1756236361711,0.02768444,111140.0,111130.0,0.89337255]
[1756236362138,0.01927297,111140.0,111130.0,0.89329255]
[1756236362349,0.19922618,111140.0,111130.0,0.89329255]
[1756236362551,0.01927297,111140.0,111130.0,0.89329255]
[1756236362759,0.22349735,111150.0,111130.0,0.73541255]
[1756236363019,0.17995321,111140.0,111130.0,0.89625255]
[1756236363238,0.01927297,111140.0,111130.0,0.89625255]
[1756236363671,0.01927297,111140.0,111130.0,0.89425255]
[1756236363886,0.01927297,111140.0,111130.0,0.89225255]
[1756236364133,0.01927297,111140.0,111130.0,0.89425255]
[1756236364385,0.01927297,111140.0,111130.0,0.89125255]
[1756236364625,0.01927297,111140.0,111130.0,0.98271457]
[1756236364847,0.02428621,111170.0,111150.0,0.17993702]
[1756236365074,0.23205428,111170.0,111160.0,0.17992083]
[1756236365296,0.28041279,111170.0,111160.0,0.33768083]
[1756236366166,0.10050814,111170.0,111160.0,0.34277083]
[1756236366377,0.10050814,111170.0,111160.0,0.82661496]
[1756236366594,0.08107791,111170.0,111160.0,0.89581496]
[1756236367037,0.08107791,111170.0,111160.0,0.89881496]
[1756236367252,0.08107791,111170.0,111160.0,0.41497083]
[1756236367464,0.08107791,111170.0,111160.0,0.89881496]
[1756236367685,0.08106778,111170.0,111160.0,0.89881496]
[1756236368127,0.26097243,111170.0,111160.0,0.41497083]
[1756236368830,0.26097243,111170.0,111160.0,0.41509083]
[1756236369045,0.08106778,111170.0,111160.0,0.41505083]
[1756236369454,0.08106778,111170.0,111160.0,0.41501083]
[1756236370408,0.08106778,111170.0,111160.0,0.89885496]
[1756236370628,0.00842306,111170.0,111160.0,0.89885496]
[1756236371483,0.17988846,111180.0,111170.0,0.17989066]
[1756236371702,0.20768907,111180.0,111170.0,0.17989066]
[1756236371912,0.20768907,111180.0,111170.0,0.18500066]
[1756236373068,0.02780061,111180.0,111170.0,0.18600066]
[1756236373274,0.00841432,111180.0,111170.0,0.66984479]
[1756236373479,0.00841432,111180.0,111170.0,0.18600066]
[1756236374304,0.18830278,111180.0,111170.0,0.18600066]
[1756236374515,0.00841432,111180.0,111170.0,0.18600066]
[1756236375718,0.00841432,111180.0,111170.0,0.18600066]
[1756236376163,0.18830278,111180.0,111170.0,0.18600066]
[1756236376368,0.17988846,111180.0,111170.0,0.34372066]
[1756236376732,0.26155749,111190.0,111170.0,0.34372066]
[1756236376928,0.28933739,111190.0,111180.0,0.18283846]
[1756236377167,0.28933739,111190.0,111180.0,0.00511]
[1756236377364,0.27197544,111190.0,111180.0,0.0047681]
[1756236377567,0.27197486,111190.0,111180.0,0.0047681]
[1756236377811,0.27197486,111190.0,111180.0,0.00216]
[1756236378978,0.26996486,111190.0,111180.0,0.18204846]
[1756236379200,0.01407733,111200.0,111190.0,0.17987229]
[1756236379419,0.17983994,111210.0,111200.0,0.17984216]
[1756236379631,0.18824214,111210.0,111200.0,0.34197036]
[1756236379824,0.18824214,111210.0,111200.0,0.34267216]
[1756236380063,0.0084022,111210.0,111200.0,0.34267216]
[1756236380328,0.17983994,111210.0,111200.0,0.33959505]
[1756236380579,0.17983994,111210.0,111200.0,0.34073724]
[1756236380797,0.17983994,111210.0,111200.0,0.34069724]
[1756236381236,0.60157958,111220.0,111210.0,0.17983994]
[1756236381464,0.60997367,111220.0,111210.0,0.18494994]
[1756236381694,0.26997367,111220.0,111210.0,0.00511]
[1756236382131,0.27198367,111220.0,111210.0,0.00511]
[1756236382491,0.27198367,111220.0,111210.0,0.16263]
[1756236383075,0.27198367,111220.0,111210.0,0.34246994]
[1756236383283,0.18893486,111220.0,111210.0,0.34246994]
[1756236383559,0.19094486,111220.0,111210.0,0.16263]
[1756236384172,0.18893486,111220.0,111210.0,0.18494994]
[1756236384590,0.55092287,111230.0,111210.0,0.34234994]
[1756236384793,0.17985123,111220.0,111210.0,0.34234994]
[1756236385003,0.18884241,111220.0,111210.0,0.34234994]
[1756236385207,0.18884241,111220.0,111210.0,0.34334994]
[1756236385416,0.18884241,111220.0,111210.0,0.34234994]
[1756236386681,0.18884241,111220.0,111210.0,0.18494994]
[1756236386894,0.18884241,111220.0,111210.0,0.34226994]
[1756236387557,0.18884241,111220.0,111210.0,0.34214994]
[1756236387764,0.17985123,111220.0,111210.0,0.34214994]
[1756236388180,0.17985123,111220.0,111210.0,0.34314994]
[1756236389215,0.17982377,111220.0,111210.0,0.34314994]
[1756236389429,0.25250762,111240.0,111220.0,0.17982377]
[1756236389641,0.1798076,111230.0,111220.0,0.00224779]
[1756236389874,0.1818176,111230.0,111220.0,0.15924779]
[1756236390595,0.1818176,111230.0,111220.0,0.33907156]
[1756236390835,0.25250762,111240.0,111230.0,0.1798076]
[1756236391053,0.26290684,111240.0,111230.0,0.00216]
[1756236391238,0.62265284,111240.0,111230.0,0.00216]
[1756236391510,0.1798076,111230.0,111220.0,0.17982377]
[1756236391719,0.1798076,111230.0,111220.0,0.33903156]
[1756236391940,0.1818176,111230.0,111220.0,0.15696]
[1756236392352,0.1818176,111230.0,111220.0,0.33903156]
[1756236392566,0.1818176,111230.0,111220.0,0.33678377]
[1756236393171,0.1798076,111230.0,111220.0,0.34189377]
[1756236394369,0.18819928,111230.0,111220.0,0.34189377]
[1756236395005,0.18819928,111230.0,111220.0,0.34289377]
[1756236395411,0.19020928,111230.0,111220.0,0.16299]
[1756236395613,0.19020928,111230.0,111220.0,0.34506156]
[1756236395822,0.19020928,111230.0,111220.0,0.34281377]
[1756236396427,0.18819928,111230.0,111220.0,0.34281377]
[1756236397305,0.00839168,111230.0,111220.0,0.34281377]
[1756236397519,0.18819928,111230.0,111220.0,0.34281377]
[1756236397940,0.18820334,111230.0,111220.0,0.34269377]
[1756236398587,0.18820405,111230.0,111220.0,0.34269377]
[1756236399521,0.18820405,111230.0,111220.0,0.34261377]
[1756236399740,0.00839645,111230.0,111220.0,0.34261377]
[1756236399961,0.18820405,111230.0,111220.0,0.34261377]
[1756236400180,0.00839645,111230.0,111220.0,0.83730557]
[1756236401084,0.00839645,111230.0,111220.0,0.92876759]
[1756236401310,0.51988436,111250.0,111240.0,0.17979144]
[1756236401545,0.19034279,111250.0,111240.0,0.33850144]
[1756236402449,0.19023371,111250.0,111240.0,0.33850144]
[1756236402672,0.19023371,111250.0,111240.0,0.33864363]
[1756236402865,0.17977528,111250.0,111240.0,0.33864363]
[1756236403083,0.17977528,111250.0,111240.0,0.34189363]
[1756236403766,0.18175528,111250.0,111240.0,0.17993363]
[1756236404024,0.67644708,111250.0,111240.0,0.15674219]
[1756236404247,0.18361528,111250.0,111240.0,0.15674219]
[1756236404460,0.19768421,111250.0,111240.0,0.15674219]
[1756236406414,0.69237601,111250.0,111240.0,0.15674219]
[1756236406854,0.19582421,111250.0,111240.0,0.15674219]
[1756236408331,0.2152163,111250.0,111240.0,0.15674219]
[1756236408526,0.19384421,111250.0,111240.0,0.34181363]
[1756236408751,0.17977528,111250.0,111240.0,0.34181363]
[1756236409369,0.18182528,111250.0,111240.0,0.16202219]
[1756236410375,0.67651708,111250.0,111240.0,0.16202219]
[1756236410590,0.67446708,111250.0,111240.0,0.34181363]
[1756236411338,0.67651708,111250.0,111240.0,0.16202219]
[1756236411989,0.69058594,111250.0,111240.0,0.15674219]
[1756236412205,0.68853594,111250.0,111240.0,0.33856363]
[1756236412421,0.19384414,111250.0,111240.0,0.34181363]
[1756236412832,0.21324229,111250.0,111240.0,0.34181363]
[1756236413800,0.70793409,111250.0,111240.0,0.34181363]
[1756236414102,0.21324229,111250.0,111240.0,0.34181363]
[1756236414891,0.22166293,111250.0,111240.0,0.34181363]
[1756236415364,0.20226478,111250.0,111240.0,0.34181363]
[1756236415821,0.0224895,111250.0,111240.0,0.90566543]
[1756236416053,0.00842064,111250.0,111240.0,0.41097363]
[1756236417225,0.00842064,111250.0,111240.0,0.41197363]
[1756236417969,0.19715422,111260.0,111250.0,0.17977528]
[1756236418087,0.20557578,111260.0,111250.0,0.18505528]
[1756236418793,0.02581558,111260.0,111250.0,0.34161528]
[1756236418977,0.00842156,111260.0,111250.0,0.34161528]
[1756236420334,0.18918068,111260.0,111250.0,0.34161528]
[1756236420536,0.00942156,111260.0,111250.0,0.34161528]
[1756236420736,0.18918068,111260.0,111250.0,0.34161528]
[1756236421041,0.00942156,111260.0,111250.0,0.34161528]
[1756236421536,0.00942156,111260.0,111250.0,0.9277691]
[1756236421957,0.00942156,111260.0,111250.0,0.9585672]
[1756236422906,0.00842156,111260.0,111250.0,0.9585672]
[1756236423106,0.00842156,111260.0,111250.0,0.9595672]
[1756236423313,0.0002,111280.0,111270.0,0.17974296]
[1756236423520,0.0002,111280.0,111270.0,0.40770974]
[1756236423726,0.0002,111280.0,111270.0,0.41074296]
[1756236424380,0.0002,111280.0,111270.0,0.41170296]
[1756236427203,0.04476112,111290.0,111280.0,0.17972681]
[1756236427431,0.04476112,111290.0,111280.0,0.18279681]
[1756236427560,0.01406411,111290.0,111280.0,0.18492681]
[1756236428424,0.01454026,111290.0,111280.0,0.18492681]
[1756236428635,0.00047615,111290.0,111280.0,0.18492681]
[1756236429319,0.00047615,111290.0,111280.0,0.34144681]
[1756236429785,0.00047615,111290.0,111280.0,0.18492681]
[1756236430021,0.00047615,111290.0,111280.0,0.34144681]
[1756236430261,0.00147615,111290.0,111280.0,0.34144681]
[1756236430462,0.00147615,111290.0,111280.0,0.18492681]
[1756236430669,0.00147615,111290.0,111280.0,0.34144681]
[1756236432463,0.00147615,111290.0,111280.0,0.83613861]
[1756236432669,0.00147615,111290.0,111280.0,0.92760063]
[1756236432894,0.00047615,111290.0,111280.0,0.92760063]
[1756236433110,0.00047615,111290.0,111280.0,0.43390883]
[1756236433338,0.00047615,111290.0,111280.0,0.92860063]
[1756236433558,0.00047615,111290.0,111280.0,0.43390883]
[1756236433757,0.00047615,111290.0,111280.0,0.92860063]
[1756236437444,0.00047615,111290.0,111280.0,0.92960063]
[1756236437756,0.00047615,111290.0,111280.0,0.92860063]
[1756236439257,0.00047615,111290.0,111280.0,0.92852063]
[1756236439890,0.00047615,111290.0,111280.0,0.43382883]
[1756236440105,0.00047615,111290.0,111280.0,0.93052063]
[1756236440317,0.00047615,111290.0,111280.0,0.43582883]
[1756236440535,0.00047615,111290.0,111280.0,0.93052063]
[1756236441012,0.00047615,111290.0,111280.0,0.43582883]
[1756236441217,0.00047615,111290.0,111280.0,0.93052063]
[1756236443373,0.00047615,111290.0,111280.0,0.77408063]
[1756236443615,0.00047615,111290.0,111280.0,0.93048063]
[1756236444568,0.00047615,111290.0,111280.0,1.42517243]
[1756236444734,0.00047615,111290.0,111280.0,1.76517243]
[1756236444933,0.00047615,111290.0,111280.0,1.29749963]
[1756236446277,0.00047615,111290.0,111280.0,0.80280783]
[1756236446501,0.00047615,111290.0,111280.0,1.29749963]
[1756236447637,0.00047615,111290.0,111280.0,2.00823143]
[1756236448071,0.00047615,111290.0,111280.0,1.51353963]
[1756236448377,0.00047615,111290.0,111280.0,2.27283143]
[1756236448617,0.00047615,111290.0,111280.0,1.52704783]
[1756236448858,0.00047615,111290.0,111280.0,2.17809963]
[1756236449723,0.00047615,111290.0,111280.0,2.17609963]
[1756236449956,0.00047615,111290.0,111280.0,2.17909963]
[1756236450173,0.00047615,111290.0,111280.0,1.91449963]
[1756236450555,0.00047615,111290.0,111280.0,1.51449963]
[1756236454660,0.00047615,111290.0,111280.0,1.91449963]
[1756236458120,0.00047615,111290.0,111280.0,1.41980783]
[1756236458319,0.00047615,111290.0,111280.0,1.91449963]
[1756236458945,0.56019055,111330.0,111310.0,0.17967837]
[1756236459152,0.07264472,111320.0,111310.0,0.24894056]
[1756236459313,0.08106,111320.0,111310.0,0.40526056]
[1756236459755,0.08106,111320.0,111310.0,0.40026056]
[1756236461215,0.00841528,111320.0,111310.0,0.40026056]
[1756236462862,0.18807751,111320.0,111310.0,0.40026056]
[1756236463463,0.00841528,111320.0,111310.0,0.40026056]
[1756236466314,0.00841528,111320.0,111310.0,0.40323056]
[1756236467358,0.70444865,111330.0,111320.0,0.17966223]
[1756236467563,0.71287479,111330.0,111320.0,0.17966223]
[1756236468008,0.03853626,111330.0,111320.0,0.17966223]
[1756236468223,0.00842614,111330.0,111320.0,0.6815598]
[1756236468445,0.00842614,111330.0,111320.0,0.77077605]
[1756236471011,0.00842614,111330.0,111320.0,0.77177605]
[1756236471836,0.21084083,111350.0,111340.0,0.17962996]
[1756236472053,0.21925823,111350.0,111340.0,0.33586996]
[1756236472263,0.17962996,111340.0,111320.0,0.18066223]
[1756236472477,0.68273916,111340.0,111330.0,0.15624]
[1756236472696,0.0084174,111340.0,111330.0,0.33588609]
[1756236472934,0.18804736,111340.0,111330.0,0.33588609]
[1756236473123,0.18804736,111340.0,111320.0,0.18263223]
[1756236473323,0.18804736,111340.0,111330.0,0.33588609]
[1756236473559,0.18804736,111340.0,111320.0,0.18263223]
[1756236473784,0.18804736,111340.0,111330.0,0.15624]
[1756236473999,0.18804736,111340.0,111330.0,0.33588609]
[1756236474422,0.0084174,111340.0,111330.0,0.33787609]
[1756236474632,0.0084174,111340.0,111330.0,0.83553789]
[1756236474887,0.0084174,111340.0,111330.0,0.18460609]
[1756236475103,0.0084174,111340.0,111330.0,0.34080609]
[1756236475512,0.18804507,111340.0,111330.0,0.00496]
[1756236475719,0.18804507,111340.0,111330.0,0.34080609]
[1756236475920,0.18804507,111340.0,111330.0,0.33684609]
[1756236476240,0.17962996,111340.0,111330.0,0.37633541]
[1756236476444,0.67430623,111350.0,111330.0,0.37930541]
[1756236476676,0.17962996,111340.0,111330.0,0.22310541]
[1756236476882,0.17962996,111340.0,111330.0,0.37633541]
[1756236477262,0.17962996,111340.0,111330.0,0.37533541]
[1756236477672,0.17962996,111340.0,111330.0,0.37830541]
[1756236477860,0.17962996,111340.0,111330.0,0.37533541]
[1756236478260,0.17962996,111340.0,111330.0,0.37930541]
[1756236479112,0.17962996,111340.0,111330.0,0.38129541]
[1756236479340,0.70035288,111350.0,111330.0,0.38129541]
[1756236479604,0.67432176,111340.0,111330.0,0.001]
[1756236479814,0.67432176,111340.0,111330.0,0.1572]
[1756236480148,0.67432176,111340.0,111330.0,0.33684609]
[1756236480358,0.17964609,111330.0,111320.0,0.18263223]
[1756236480540,0.17964609,111330.0,111320.0,0.33879223]
[1756236480958,0.17964609,111330.0,111310.0,0.06926219]
[1756236480959,0.17966223,111320.0,111310.0,0.06926219]
[1756236481204,0.17964609,111330.0,111310.0,0.40709056]
[1756236481481,0.70133976,111340.0,111330.0,0.17964609]
[1756236481706,1.04975367,111340.0,111330.0,0.33680609]
[1756236481928,1.04975367,111340.0,111330.0,0.33977609]
[1756236482155,1.02273567,111340.0,111330.0,0.33877609]
[1756236482377,1.02273567,111340.0,111330.0,0.16112]
[1756236482773,1.02273567,111340.0,111330.0,0.34076609]
[1756236483243,1.02273567,111340.0,111330.0,0.15616]
[1756236483434,1.02273567,111340.0,111310.0,0.35235649]
[1756236483435,0.17966223,111320.0,111310.0,0.35235649]
[1756236483644,0.4946918,111320.0,111310.0,0.50554649]
[1756236483872,0.4946918,111320.0,111310.0,0.50753649]
[1756236484089,0.67433789,111330.0,111320.0,0.17966223]
[1756236484299,0.67433789,111330.0,111320.0,0.18462223]
[1756236485139,0.67433789,111330.0,111320.0,0.00496]
[1756236486228,0.67433789,111330.0,111320.0,0.18462223]
[1756236486446,0.67433789,111330.0,111320.0,0.00496]
[1756236486656,0.67433789,111330.0,111320.0,0.18462223]
[1756236487080,0.67433789,111330.0,111320.0,0.00496]
[1756236487295,0.17964609,111330.0,111320.0,0.18460223]
[1756236487537,0.67433789,111330.0,111320.0,0.18460223]
[1756236487976,0.67433789,111330.0,111320.0,0.00494]
[1756236488401,0.17966223,111320.0,111310.0,0.06926219]
[1756236488603,0.67435403,111320.0,111310.0,0.22538219]
[1756236489748,0.67435403,111320.0,111310.0,0.22638219]
[1756236491551,0.67435403,111320.0,111310.0,0.41102056]
[1756236492112,0.17966223,111320.0,111310.0,0.41102056]
[1756236492334,0.67435403,111320.0,111310.0,0.41102056]
[1756236492803,0.4946918,111320.0,111310.0,0.41102056]
[1756236494006,0.17964609,111330.0,111310.0,0.41102056]
[1756236494197,0.4946918,111320.0,111310.0,0.40803056]
[1756236494853,0.67435403,111320.0,111310.0,0.41102056]
[1756236495276,0.17966223,111320.0,111310.0,0.41102056]
[1756236495492,0.67435403,111320.0,111310.0,0.41302056]
[1756236496280,0.67435403,111320.0,111310.0,0.41202056]
[1756236497533,0.67435403,111320.0,111310.0,0.41302056]
[1756236497877,0.4946918,111320.0,111310.0,0.41302056]
[1756236498268,0.17964609,111330.0,111310.0,0.41302056]
[1756236501212,0.67432176,111340.0,111330.0,0.34068609]
[1756236501641,0.67532176,111340.0,111330.0,0.34068609]
[1756236502186,0.001,111340.0,111330.0,0.83537789]
[1756236502410,0.43371433,111370.0,111330.0,0.83537789]
[1756236502411,0.42901461,111370.0,111350.0,0.17959819]
[1756236502639,0.6742895,111360.0,111350.0,0.18184336]
[1756236502878,0.6742895,111360.0,111350.0,0.33989336]
[1756236503077,0.4946918,111360.0,111350.0,0.34063819]
[1756236503302,0.76890956,111370.0,111360.0,0.1795977]
[1756236503506,0.92359844,111370.0,111360.0,0.1815677]
[1756236503721,0.92359844,111370.0,111360.0,0.18469989]
[1756236503931,0.94934521,111370.0,111360.0,0.18469989]
[1756236504172,0.94934521,111370.0,111360.0,0.18272989]
[1756236504405,0.95034521,111370.0,111360.0,0.18272989]
[1756236504624,0.45465341,111370.0,111360.0,0.18469989]
[1756236504864,0.94934521,111370.0,111360.0,0.18272989]
[1756236505557,0.94934521,111370.0,111360.0,0.15917219]
[1756236505904,0.94934521,111370.0,111360.0,0.00014219]
[1756236506141,0.94934521,111370.0,111360.0,0.15618219]
[1756236507382,0.94934521,111370.0,111360.0,0.00014219]
[1756236507604,0.94934521,111370.0,111360.0,0.15618219]
[1756236508009,0.94934521,111370.0,111360.0,0.15614219]
[1756236508651,0.94934521,111370.0,111360.0,0.00014219]
[1756236508854,0.94934521,111370.0,111360.0,0.15614219]
[1756236509256,0.94934521,111370.0,111360.0,0.00014219]
[1756236509462,0.96679423,111370.0,111360.0,0.00014219]
[1756236509663,0.96679423,111370.0,111360.0,0.15614219]
[1756236509887,0.96679423,111370.0,111360.0,0.00014219]
[1756236510324,1.46279423,111370.0,111360.0,0.00014219]
[1756236510683,1.30679423,111370.0,111360.0,0.00014219]
[1756236510884,1.39823952,111370.0,111360.0,0.00014219]
[1756236511521,1.42524952,111370.0,111360.0,0.00014219]
[1756236512931,1.43364516,111370.0,111360.0,0.00014219]
[1756236513505,1.43364498,111370.0,111360.0,0.00014219]
[1756236514312,1.92833678,111370.0,111360.0,0.00014219]
[1756236514766,6.93336397,111370.0,111360.0,0.00014219]
[1756236514995,7.08932397,111370.0,111360.0,0.00014219]
[1756236515705,7.28932397,111370.0,111360.0,0.00014219]
[1756236515978,7.22807178,111370.0,111360.0,0.00014219]
[1756236516221,7.24212971,111370.0,111360.0,0.00014219]
[1756236516804,7.24213174,111370.0,111360.0,0.00014219]
[1756236517005,7.30338393,111370.0,111360.0,1e-08]
[1756236517239,6.27839549,111370.0,111360.0,1e-08]
[1756236517450,7.26777909,111370.0,111360.0,1e-08]
[1756236517865,7.27247881,111370.0,111360.0,1e-08]
[1756236518889,7.11651881,111370.0,111360.0,1e-08]
[1756236519115,7.27247881,111370.0,111360.0,1e-08]
[1756236519537,7.11651881,111370.0,111360.0,1e-08]
[1756236519961,6.91651881,111370.0,111360.0,1e-08]
[1756236520171,6.55209966,111370.0,111360.0,1e-08]
[1756236521251,6.39617966,111370.0,111360.0,1e-08]
[1756236521454,6.55209966,111370.0,111360.0,1e-08]
[1756236522905,6.39617966,111370.0,111360.0,1e-08]
[1756236523072,6.55209966,111370.0,111360.0,0.00298001]
[1756236523493,6.30473437,111370.0,111360.0,0.00510001]
[1756236523692,6.45595465,111370.0,111360.0,0.00510001]
[1756236524003,6.44189672,111370.0,111360.0,0.00510001]
[1756236524363,5.94720492,111370.0,111360.0,0.00510001]
[1756236524569,6.44189672,111370.0,111360.0,0.00510001]
[1756236524726,6.53334201,111370.0,111360.0,0.00510001]
[1756236525508,6.53334201,111370.0,111360.0,0.00298001]
[1756236525716,1.58956701,111370.0,111360.0,0.00298001]
[1756236526676,1.58957276,111370.0,111360.0,0.00298001]
[1756236527092,1.60362966,111370.0,111360.0,0.00298001]
[1756236529187,1.51218437,111370.0,111360.0,0.00510001]
[1756236529796,1.51218437,111370.0,111360.0,0.00298001]
[1756236530039,1.51218437,111370.0,111360.0,1e-08]
[1756236530589,2.00687617,111370.0,111360.0,1e-08]
[1756236532337,6.95065117,111370.0,111360.0,1e-08]
[1756236532543,7.04209646,111370.0,111360.0,1e-08]
[1756236533261,7.04210234,111370.0,111360.0,1e-08]
[1756236536255,7.04202234,111370.0,111360.0,1e-08]
[1756236536485,7.04202701,111370.0,111360.0,1e-08]
[1756236536685,7.04202697,111370.0,111360.0,1e-08]
[1756236537215,6.54733517,111370.0,111360.0,0.00298001]
[1756236537416,6.05264507,111370.0,111360.0,1e-08]
[1756236537622,6.54733687,111370.0,111360.0,0.00510001]
[1756236537821,6.54733687,111370.0,111360.0,0.00298001]
[1756236538018,6.54723687,111370.0,111360.0,0.00298001]
[1756236539507,6.39139687,111370.0,111360.0,0.00298001]
[1756236539726,6.54719687,111370.0,111360.0,0.00298001]
[1756236539982,6.53878142,111370.0,111360.0,0.00298001]
[1756236540134,6.54720001,111370.0,111360.0,0.00298001]
[1756236540379,6.54720001,111370.0,111360.0,1e-08]
[1756236540807,6.39140001,111370.0,111360.0,1e-08]
[1756236540956,6.54720001,111370.0,111360.0,1e-08]
[1756236542094,6.38298142,111370.0,111360.0,1e-08]
[1756236542333,6.54720341,111370.0,111360.0,1e-08]
[1756236543417,6.54720341,111370.0,111360.0,0.00298001]
[1756236543572,6.54720341,111370.0,111360.0,1e-08]
[1756236543973,6.39140341,111370.0,111360.0,1e-08]
[1756236544180,6.54720341,111370.0,111360.0,0.00298001]
[1756236545173,6.05251161,111370.0,111360.0,0.00298001]
[1756236545389,6.54720341,111370.0,111360.0,0.00298001]
[1756236545598,7.04189521,111370.0,111360.0,1e-08]
[1756236545814,7.04189603,111370.0,111360.0,1e-08]
[1756236546025,7.04189603,111370.0,111360.0,0.00298001]
[1756236546449,6.54720423,111370.0,111360.0,0.00298001]
[1756236546669,6.5472044,111370.0,111360.0,0.00298001]
[1756236547981,7.0418962,111370.0,111360.0,0.00298001]
[1756236548192,6.5472044,111370.0,111360.0,0.00298001]
[1756236549430,6.55352582,111370.0,111360.0,0.00298001]
[1756236550586,7.04821762,111370.0,111360.0,1e-08]
[1756236551437,7.06764259,111370.0,111360.0,1e-08]
[1756236552481,7.32889749,111370.0,111360.0,1e-08]
[1756236552693,7.35313173,111370.0,111360.0,1e-08]
[1756236552901,7.35782974,111370.0,111360.0,1e-08]
[1756236556247,7.28251535,111370.0,111360.0,1e-08]
[1756236556458,7.28251397,111370.0,111360.0,1e-08]
[1756236558459,7.29657267,111370.0,111360.0,1e-08]
[1756236561222,7.14077267,111370.0,111360.0,1e-08]
[1756236561442,7.29645267,111370.0,111360.0,1e-08]
[1756236562999,7.36553267,111370.0,111360.0,1e-08]
[1756236563929,5.50249476,111370.0,111360.0,0.00531001]
[1756236564157,0.48998592,111370.0,111360.0,0.00531001]
[1756236564369,0.94924521,111370.0,111360.0,0.00531001]
[1756236564633,1.10488521,111370.0,111360.0,0.00531001]
[1756236564834,1.4707485,111370.0,111360.0,0.00531001]
[1756236565055,1.24920579,111370.0,111360.0,0.00531001]
[1756236565387,1.58920579,111370.0,111360.0,0.00531001]
[1756236565581,1.24920579,111370.0,111360.0,0.00831001]
[1756236566031,1.58920554,111370.0,111360.0,0.00831001]
[1756236566448,1.5892048,111370.0,111360.0,0.00831001]
[1756236567318,2.0838966,111370.0,111360.0,0.00831001]
[1756236570554,1.9282566,111370.0,111360.0,0.00831001]
[1756236570761,1.34211951,111370.0,111360.0,0.00831001]
[1756236570965,1.49771951,111370.0,111360.0,0.00831001]
[1756236572251,1.34211951,111370.0,111360.0,0.00831001]
[1756236572461,1.34211951,111370.0,111360.0,0.18790771]
[1756236572462,0.81200243,111370.0,111360.0,0.18790771]
[1756236573544,0.63242086,111370.0,111360.0,0.18790771]
[1756236573751,0.24922507,111370.0,111360.0,0.18790771]
[1756236574988,0.42880664,111370.0,111360.0,0.18790771]
[1756236575194,0.24922507,111370.0,111360.0,0.18790771]
[1756236575814,0.46586942,111370.0,111360.0,0.18790771]
[1756236578373,0.46586942,111370.0,111360.0,0.00831001]
[1756236578574,0.46586942,111370.0,111360.0,0.34342771]
[1756236578782,0.42880664,111370.0,111360.0,0.18790771]
[1756236578942,0.42880664,111370.0,111360.0,0.34342771]
[1756236579160,0.42880664,111370.0,111360.0,0.16383001]